bitfinex-derivatives/quotes_SOLF0:USTF0_20260203
["timestamp","ask_amount","ask_price","bid_price","bid_amount"]
[1770081069198,6.35555015,103.84,103.76,4.9921056]
[1770081069899,8.6769,103.83,103.76,13.6734056]
[1770081070502,141.30695015,103.84,103.76,4.9921056]
[1770081070706,134.9651,103.83,103.76,4.9921056]
[1770081071000,8.6779,103.81,103.76,4.9921056]
[1770081078107,8.6772,103.82,103.77,4.99152914]
[1770081079702,8.6763,103.83,103.77,13.67272914]
[1770081080305,8.6763,103.83,103.74,135.0803]
[1770081080306,8.676,103.84,103.78,13.67759154]
[1770081080500,141.28105015,103.86,103.78,13.67759154]
[1770081081302,8.6754,103.84,103.79,4.99747915]
[1770081081506,141.28105015,103.86,103.79,4.99747915]
[1770081082009,8.6763,103.83,103.79,4.99747915]
[1770081083013,284.74,103.87,103.79,4.99747915]
[1770081083207,470.04425015,103.88,103.79,4.99747915]
[1770081083507,335.13555015,103.88,103.8,4.9690823]
[1770081083812,134.8708,103.91,103.81,4.96907869]
[1770081084113,463.9108,103.91,103.81,4.96907869]
[1770081084706,8.672,103.88,103.82,13.64607869]
[1770081089111,8.672,103.88,103.83,4.84901538]
[1770081089814,8.672,103.88,103.82,8.677]
[1770081090016,8.6729,103.87,103.81,4.84904506]
[1770081090313,134.8899,103.89,103.81,4.84904506]
[1770081090515,2.37498422,103.86,103.81,4.84904506]
[1770081091307,11.04868422,103.86,103.81,4.84904506]
[1770081093913,11.04868422,103.86,103.8,8.6786]
[1770081094119,11.04978422,103.85,103.79,13.54511854]
[1770081097227,11.04978422,103.85,103.8,4.86688994]
[1770081099128,11.05038422,103.84,103.79,8.6795]
[1770081100825,11.05038422,103.84,103.79,4.9458578]
[1770081101229,2.37498422,103.84,103.79,13.6253578]
[1770081101526,11.04968422,103.85,103.79,13.6253578]
[1770081101726,11.04968422,103.85,103.8,4.9458578]
[1770081101924,8.6747,103.85,103.8,4.9458578]
[1770081102824,11.04888422,103.86,103.81,4.95146197]
[1770081103025,8.6739,103.86,103.81,4.95146197]
[1770081103718,8.6729,103.87,103.82,4.95146197]
[1770081103921,2.37498422,103.88,103.82,4.95146197]
[1770081104324,2.37498422,103.86,103.8,4.95146323]
[1770081104523,2.37498422,103.85,103.8,4.95146323]
[1770081104928,2.37498422,103.84,103.79,4.98914735]
[1770081105422,2.37498422,103.83,103.79,4.98914735]
[1770081106022,2.37498422,103.82,103.77,4.98913992]
[1770081106221,2.37498422,103.81,103.77,4.98913992]
[1770081106426,2.37736081,103.81,103.77,4.98913992]
[1770081108432,8.6778,103.82,103.77,4.98913992]
[1770081113334,8.6778,103.82,103.75,8.6829]
[1770081113534,8.6779,103.81,103.75,13.67622374]
[1770081114131,8.6779,103.81,103.76,4.99331625]
[1770081119841,8.679,103.8,103.74,13.69232437]
[1770081120034,8.679,103.8,103.74,5.00862437]
[1770081120636,8.6798,103.79,103.74,5.00862437]
[1770081121038,141.3715576,103.8,103.72,13.68928157]
[1770081121636,8.6811,103.78,103.72,13.68928157]
[1770081122748,326.06,103.81,103.73,5.00397273]
[1770081124348,326.06,103.81,103.74,4.97394591]
[1770081124545,141.3488576,103.82,103.74,4.97394591]
[1770081125049,468.2397576,103.84,103.75,5.02279697]
[1770081125250,134.9654,103.83,103.75,5.02279697]
[1770081126351,8.6779,103.81,103.76,5.02278516]
[1770081127544,8.6788,103.8,103.74,5.03031594]
[1770081128353,11.05665567,103.8,103.75,5.03030307]
[1770081131154,11.05595567,103.81,103.76,5.02994493]
[1770081133154,11.05665567,103.8,103.75,8.6827]
[1770081133351,2.37785567,103.79,103.75,8.6827]
[1770081133756,2.37785567,103.79,103.75,13.70584785]
[1770081134355,11.05575567,103.81,103.76,5.02313701]
[1770081135355,2.37785567,103.8,103.76,5.02313701]
[1770081136056,11.05575567,103.81,103.76,5.02313701]
[1770081138452,11.05575567,103.81,103.77,5.05463259]
[1770081138654,8.6788,103.8,103.74,5.05463259]
[1770081138852,2.37785567,103.81,103.74,5.05463259]
[1770081139053,2.37785567,103.79,103.74,5.05463259]
[1770081139859,8.6789,103.8,103.75,5.0557636]
[1770081141161,11.05585567,103.81,103.75,13.7385636]
[1770081142362,8.678,103.81,103.76,5.06301541]
[1770081149667,8.6787,103.8,103.74,15.98138938]
[1770081149869,8.6787,103.8,103.74,13.60353371]
[1770081150361,8.6787,103.8,103.75,4.92003866]
[1770081151067,8.678,103.81,103.76,4.83467521]
[1770081152772,11.05585567,103.81,103.75,8.6826]
[1770081152976,8.679,103.8,103.75,8.6826]
[1770081153775,8.679,103.8,103.75,13.48820358]
[1770081155682,8.679,103.8,103.75,4.80560358]
[1770081155984,2.37785567,103.79,103.73,4.80592235]
[1770081157280,8.6806,103.78,103.73,4.80592235]
[1770081158887,8.6806,103.78,103.72,11.06305567]
[1770081158888,8.6814,103.77,103.72,11.06305567]
[1770081159089,8.6814,103.77,103.72,8.6852]
[1770081159787,8.6814,103.77,103.72,13.50160269]
[1770081161090,8.6805,103.78,103.73,4.8173429]
[1770081161282,8.6805,103.78,103.73,13.5019429]
[1770081161488,8.6799,103.79,103.74,4.8173429]
[1770081161884,2.37785567,103.79,103.72,15.88001494]
[1770081162183,2.37785567,103.79,103.73,4.81735927]
[1770081162887,8.6811,103.78,103.73,4.81735927]
[1770081165189,8.6797,103.79,103.73,15.87911494]
[1770081166288,8.6804,103.78,103.73,15.87911494]
[1770081168592,8.6804,103.78,103.73,7.19560955]
[1770081168793,8.6804,103.78,103.73,4.81735927]
[1770081172993,8.6816,103.77,103.72,4.81908735]
[1770081173396,8.6804,103.78,103.72,7.19733763]
[1770081174597,8.6804,103.78,103.72,15.88263763]
[1770081175297,8.6804,103.78,103.72,13.50438735]
[1770081175694,8.6804,103.78,103.73,4.82979654]
[1770081175997,11.05785028,103.79,103.74,4.82980895]
[1770081176197,8.6796,103.79,103.74,4.82980895]
[1770081180397,2.37825028,103.8,103.74,13.51350895]
[1770081180603,8.6789,103.8,103.75,4.84333221]
[1770081180802,464.7576,103.82,103.75,4.84333221]
[1770081180803,2.37825028,103.82,103.76,4.83861925]
[1770081182604,2.37825028,103.82,103.75,8.6827]
[1770081182806,2.37825028,103.82,103.75,13.5211822]
[1770081183400,8.6788,103.8,103.75,13.5211822]
[1770081187809,8.6788,103.8,103.75,15.89943248]
[1770081188107,8.6788,103.8,103.76,4.72437689]
[1770081191306,8.6781,103.81,103.76,15.78452717]
[1770081191603,137.31245028,103.86,103.79,4.70946003]
[1770081192008,464.1289,103.88,103.79,7.08771031]
[1770081192209,2.37825028,103.87,103.81,4.70948016]
[1770081193309,8.6738,103.86,103.81,7.08773044]
[1770081195307,8.6738,103.86,103.81,4.70948016]
[1770081195514,8.673,103.87,103.81,7.08773044]
[1770081195910,8.673,103.87,103.81,15.76553044]
[1770081196109,2.37825028,103.92,103.85,4.7333173]
[1770081196414,137.23005028,103.92,103.85,7.11156758]
[1770081197305,8.6704,103.9,103.85,7.11156758]
[1770081198108,137.25295028,103.9,103.83,7.10684965]
[1770081198313,2.37825028,103.89,103.82,2.37825028]
[1770081198713,8.6718,103.89,103.82,15.78374965]
[1770081198915,8.6718,103.89,103.83,2.37825028]
[1770081200416,8.6721,103.88,103.82,15.78374965]
[1770081201419,11.05035028,103.88,103.82,4.72859937]
[1770081202418,8.6721,103.88,103.82,7.10684965]
[1770081202818,8.6721,103.88,103.83,4.19194584]
[1770081203019,8.6721,103.88,103.83,6.57019612]
[1770081203319,334.27825028,103.9,103.83,6.57019612]
[1770081203714,469.15255028,103.9,103.83,6.57019612]
[1770081204916,8.673,103.87,103.81,4.19666123]
[1770081205121,8.673,103.87,103.81,6.57491151]
[1770081205319,8.673,103.87,103.82,4.19666123]
[1770081206022,8.6721,103.88,103.82,4.19666123]
[1770081206523,8.6721,103.88,103.83,6.57496358]
[1770081209525,8.6721,103.88,103.83,4.1967133]
[1770081210325,11.05135028,103.87,103.81,12.87166553]
[1770081210824,2.37825028,103.86,103.81,12.87166553]
[1770081211524,2.37825028,103.86,103.82,4.19709976]
[1770081211821,336.1,103.88,103.82,4.19709976]
[1770081211822,8.673,103.87,103.82,4.19709976]
[1770081212223,8.6738,103.86,103.82,4.19709976]
[1770081214826,8.673,103.87,103.82,4.19709976]
[1770081217628,11.05125028,103.87,103.82,4.19709976]
[1770081220026,11.05125028,103.87,103.8,2.37825028]
[1770081220027,137.29225028,103.87,103.8,4.41384346]
[1770081220232,2.37825028,103.85,103.8,4.41384346]
[1770081220733,11.05335028,103.85,103.8,4.41384346]
[1770081221934,11.05215028,103.86,103.81,4.42891013]
[1770081222129,8.6739,103.86,103.81,4.42891013]
[1770081222735,8.6731,103.87,103.82,4.42891013]
[1770081231033,8.6738,103.86,103.82,4.42891013]
[1770081232237,11.04802461,103.86,103.82,4.42891013]
[1770081232737,11.04802461,103.86,103.8,13.16848356]
[1770081233439,11.04802461,103.86,103.8,4.48998356]
[1770081233440,8.6747,103.85,103.8,4.48998356]
[1770081233638,11.04892461,103.85,103.8,4.48998356]
[1770081234836,8.6747,103.85,103.8,4.48998356]
[1770081235239,8.6747,103.85,103.8,13.16848356]
[1770081236845,11.04892461,103.85,103.8,13.16848356]
[1770081239947,2.37422461,103.85,103.8,13.16848356]
[1770081240744,11.04812461,103.86,103.8,13.16848356]
[1770081241948,8.6749,103.85,103.8,13.16848356]
[1770081242841,11.04912461,103.85,103.8,13.16848356]
[1770081243045,2.37422461,103.82,103.76,4.4894246]
[1770081243352,2.37422461,103.81,103.76,4.4894246]
[1770081243548,11.05142461,103.82,103.77,4.4894246]
[1770081244148,2.37422461,103.84,103.78,4.48944481]
[1770081244343,2.37422461,103.85,103.79,4.48944481]
[1770081245352,11.04882461,103.85,103.8,4.46810709]
[1770081247156,11.04802461,103.86,103.81,4.51157718]
[1770081247855,8.6738,103.86,103.82,4.51159557]
[1770081250554,8.673,103.87,103.82,4.51159557]
[1770081252257,11.04722461,103.87,103.82,4.51159557]
[1770081254156,11.04802461,103.86,103.81,8.6777]
[1770081254355,11.04802461,103.86,103.81,13.21451726]
[1770081254553,2.37422461,103.88,103.83,4.53681726]
[1770081256355,2.37422461,103.86,103.81,13.21527862]
[1770081256657,2.37422461,103.86,103.82,4.53747862]
[1770081256851,2.37422461,103.87,103.82,4.53747862]
[1770081257452,11.04772461,103.87,103.82,4.53747862]
[1770081260264,2.37422461,103.87,103.82,4.53747862]
[1770081260463,2.37422461,103.86,103.8,4.61258043]
[1770081260663,2.37422461,103.85,103.8,4.61258043]
[1770081261553,11.04882461,103.85,103.8,4.61258043]
[1770081261752,2.37422461,103.86,103.8,4.61258043]
[1770081263356,11.04802461,103.86,103.81,4.60975041]
[1770081264662,11.04802461,103.86,103.81,13.28745041]
[1770081264961,8.6738,103.86,103.82,4.61253943]
[1770081266962,352.55422461,103.88,103.83,4.61576971]
[1770081267168,2.37422461,103.89,103.83,4.61576971]
[1770081267761,354.11422461,103.9,103.84,4.61576971]
[1770081267959,2.37422461,103.91,103.84,4.61576971]
[1770081269063,2.37422461,103.91,103.85,4.62299141]
[1770081269464,8.6705,103.9,103.85,4.62299141]
[1770081270266,11.04472461,103.9,103.85,4.62299141]
[1770081274672,11.04422461,103.91,103.86,4.62043458]
[1770081274975,8.67,103.91,103.86,4.62043458]
[1770081275271,11.04422461,103.91,103.86,4.62043458]
[1770081276871,8.6705,103.9,103.86,4.62043458]
[1770081279369,11.04632461,103.88,103.84,4.69607238]
[1770081279673,2.37422461,103.87,103.81,4.69607238]
[1770081281270,2.37422461,103.87,103.82,8.6768]
[1770081281469,2.37422461,103.87,103.82,13.36507633]
[1770081281766,11.04632461,103.88,103.82,13.36507633]
[1770081284077,11.04632461,103.88,103.83,4.6937637]
[1770081285178,8.6729,103.87,103.83,4.6937637]
[1770081285377,11.04712461,103.87,103.83,4.6937637]
[1770081285776,8.6729,103.87,103.83,4.6937637]
[1770081290972,2.37434416,103.85,103.8,4.68146968]
[1770081291171,2.37434416,103.83,103.78,4.68146968]
[1770081291777,2.37434416,103.83,103.78,13.36186968]
[1770081292976,11.04984416,103.84,103.78,13.36186968]
[1770081295780,2.37434416,103.83,103.78,13.36186968]
[1770081296677,134.9255,103.86,103.78,13.36186968]
[1770081296678,2.37434416,103.86,103.8,4.66475095]
[1770081296873,2.37434416,103.87,103.8,4.66475095]
[1770081297080,2.37434416,103.87,103.81,4.66594557]
[1770081297679,2.37434416,103.88,103.81,4.66594557]
[1770081298275,8.6735,103.87,103.81,13.34364557]
[1770081298582,2.37434416,103.88,103.82,4.6659521]
[1770081298978,11.04654416,103.88,103.83,4.67580304]
[1770081299176,8.6722,103.88,103.83,4.67580304]
[1770081300376,8.6729,103.87,103.83,4.67580304]
[1770081301181,11.04654416,103.88,103.83,4.67580304]
[1770081302380,8.6722,103.88,103.83,4.67580304]
[1770081302877,11.04654416,103.88,103.83,4.67580304]
[1770081303079,2.37434416,103.86,103.81,13.3721658]
[1770081303279,2.37434416,103.86,103.81,4.6943658]
[1770081304482,11.04814416,103.86,103.81,4.6943658]
[1770081306389,2.37434416,103.86,103.82,4.68217416]
[1770081306576,11.04734416,103.87,103.82,4.68217416]
[1770081308876,2.37434416,103.86,103.82,4.68217416]
[1770081309390,11.04824416,103.86,103.82,4.68217416]
[1770081310589,11.04744416,103.87,103.82,4.68217416]
[1770081311984,11.04744416,103.87,103.82,13.35907416]
[1770081313482,8.6731,103.87,103.82,13.35907416]
[1770081313687,2.37434416,103.89,103.84,4.77997733]
[1770081313985,2.37434416,103.9,103.84,4.77997733]
[1770081314689,8.6705,103.9,103.85,4.77998063]
[1770081315086,2.37434416,103.91,103.85,4.77998063]
[1770081316290,11.04404416,103.91,103.85,13.45388063]
[1770081317095,11.04404416,103.91,103.86,4.77547239]
[1770081318492,11.04404416,103.91,103.86,13.44907239]
[1770081319494,8.6697,103.91,103.86,4.77547239]
[1770081319691,11.04314416,103.92,103.86,4.77547239]
[1770081320195,11.04314416,103.92,103.86,13.44877239]
[1770081320398,8.6697,103.91,103.86,13.44877239]
[1770081320790,2.37434416,103.93,103.87,13.44620346]
[1770081320995,11.04154416,103.94,103.88,4.77350346]
[1770081321293,2.37434416,103.95,103.89,4.77350346]
[1770081321491,11.04084416,103.95,103.9,4.77350346]
[1770081321891,2.37434416,103.96,103.9,4.77350346]
[1770081322200,8.6655,103.96,103.91,4.77350654]
[1770081325495,8.6643,103.98,103.92,4.76338783]
[1770081325696,2.37434416,103.98,103.92,4.76338783]
[1770081325897,2.37434416,103.97,103.88,345.3579]
[1770081326197,2.37434416,103.94,103.88,215.22339093]
[1770081326396,2.37434416,103.93,103.88,4.76339093]
[1770081327194,2.37434416,103.94,103.89,4.74718017]
[1770081327694,2.37434416,103.96,103.9,4.74718017]
[1770081328496,2.37434416,103.97,103.92,4.74718346]
[1770081328699,11.03874416,103.98,103.92,4.74718346]
[1770081329000,11.03904416,103.97,103.92,4.74718346]
[1770081329595,11.03994416,103.96,103.9,4.79784809]
[1770081329801,2.37434416,103.94,103.9,4.79784809]
[1770081330100,2.37434416,103.94,103.88,4.79785053]
[1770081331297,2.37434416,103.94,103.89,4.82306927]
[1770081331503,11.04074416,103.95,103.89,4.82306927]
[1770081331800,8.6654,103.96,103.91,4.82306927]
[1770081333004,11.03894416,103.97,103.92,4.83328786]
[1770081333201,2.37434416,103.96,103.9,4.83328786]
[1770081334101,11.03974416,103.96,103.91,4.83328966]
[1770081334301,2.37434416,103.97,103.91,4.83328966]
[1770081334905,2.37434416,103.96,103.91,13.50268966]
[1770081335108,2.37434416,103.96,103.91,4.83328966]
[1770081336005,11.03994416,103.96,103.91,4.83328966]
[1770081336205,2.37434416,103.97,103.91,4.83328966]
[1770081336702,11.03954416,103.97,103.91,13.50278966]
[1770081337101,2.37434416,103.96,103.91,13.50278966]
[1770081337497,11.03974416,103.96,103.91,13.50278966]
[1770081339008,11.04074416,103.95,103.89,4.86063205]
[1770081340308,11.04074416,103.95,103.89,13.53153205]
[1770081340508,11.04074416,103.95,103.9,4.86063336]
[1770081341007,11.04144416,103.94,103.88,13.51993609]
[1770081343308,134.8234,103.94,103.86,4.96546027]
[1770081343510,2.37434416,103.91,103.86,4.96546027]
[1770081344011,11.04414416,103.91,103.86,4.96546027]
[1770081344209,2.37434416,103.9,103.85,8.6744]
[1770081344409,2.37434416,103.9,103.85,13.63986016]
[1770081344809,11.04414416,103.91,103.85,13.63986016]
[1770081345004,2.37434416,103.91,103.86,8.6734]
[1770081345209,11.04314416,103.92,103.87,4.97384123]
[1770081345505,11.04314416,103.92,103.85,4.97384123]
[1770081345706,11.04404416,103.91,103.85,4.97384123]
[1770081346710,2.37434416,103.91,103.86,13.64744101]
[1770081347209,11.04404416,103.91,103.86,4.97384101]
[1770081348406,2.37434416,103.91,103.86,13.64744101]
[1770081348611,11.04304416,103.92,103.87,4.97999601]
[1770081350212,11.04404416,103.91,103.86,8.6736]
[1770081350414,11.04404416,103.91,103.86,13.65438407]
[1770081350810,8.6697,103.91,103.86,13.65438407]
[1770081351211,11.04404416,103.91,103.86,4.98078407]
[1770081351613,11.04304416,103.92,103.86,13.65438407]
[1770081352616,2.37274088,103.91,103.86,13.65438407]
[1770081353213,11.04244088,103.91,103.86,13.65438407]
[1770081353414,2.37274088,103.91,103.87,4.97816026]
[1770081353617,2.37274088,103.92,103.87,4.97816026]
[1770081353813,8.6688,103.92,103.87,13.65076026]
[1770081354013,2.37274088,103.93,103.87,13.65076026]
[1770081354212,2.37274088,103.92,103.87,4.97816026]
[1770081354611,2.37274088,103.93,103.87,4.97816026]
[1770081355722,2.37274088,103.95,103.88,4.9957741]
[1770081356514,8.6671,103.94,103.89,4.99577366]
[1770081359119,11.03984088,103.94,103.89,4.99577366]
[1770081359620,11.03904088,103.95,103.9,4.9582448]
[1770081360620,2.37274088,103.96,103.91,4.95824479]
[1770081360825,2.37274088,103.97,103.91,4.95824479]
[1770081362425,8.6647,103.97,103.92,4.95911995]
[1770081363430,11.03844088,103.96,103.91,8.6691]
[1770081363631,2.37274088,103.94,103.88,4.97337059]
[1770081364627,134.7994,103.96,103.88,4.97337059]
[1770081364628,2.37274088,103.93,103.88,4.97337059]
[1770081364834,2.37274088,103.92,103.88,4.97337059]
[1770081365231,11.04064088,103.93,103.88,4.97337059]
[1770081367435,8.6679,103.93,103.88,4.97337059]
[1770081367737,11.04064088,103.93,103.88,4.97337059]
[1770081367937,8.6688,103.92,103.88,4.97337059]
[1770081369141,11.04074088,103.93,103.88,4.97337059]
[1770081373240,8.6687,103.92,103.88,4.97337059]
[1770081373632,2.37274088,103.9,103.86,5.25099378]
[1770081373832,2.37274088,103.9,103.84,5.25099112]
[1770081375342,11.04394088,103.9,103.85,5.25083479]
[1770081375739,2.37274088,103.89,103.85,5.25083479]
[1770081375933,2.37274088,103.88,103.83,13.9268322]
[1770081376340,2.37274088,103.88,103.83,5.2508322]
[1770081377145,11.04494088,103.88,103.83,5.2508322]
[1770081378642,11.04494088,103.88,103.83,13.9269322]
[1770081380547,11.04494088,103.88,103.8,350.80504088]
[1770081380548,11.04404088,103.89,103.84,14.1171736]
[1770081383048,11.04404088,103.89,103.84,5.4417736]
[1770081384148,2.37274088,103.88,103.84,5.4417736]
[1770081385151,11.04404088,103.89,103.84,5.4417736]
[1770081388551,8.6713,103.89,103.84,5.4417736]
[1770081388749,11.04404088,103.89,103.84,5.4417736]
[1770081389352,2.37274088,103.89,103.84,5.4417736]
[1770081390645,2.37274088,103.86,103.8,5.4320452]
[1770081390849,2.37274088,103.84,103.8,5.4320452]
[1770081392749,2.37274088,103.83,103.78,5.29372481]
[1770081393456,2.37274088,103.83,103.79,5.29088439]
[1770081393949,11.04654088,103.86,103.8,5.29088202]
[1770081394354,2.37274088,103.87,103.8,5.29088202]
[1770081394851,2.37274088,103.86,103.81,5.29088202]
[1770081395055,2.37274088,103.83,103.77,5.30201903]
[1770081395663,2.37274088,103.81,103.75,5.30201903]
[1770081395955,2.37274088,103.8,103.75,5.30201903]
[1770081396352,2.37274088,103.78,103.71,5.30201664]
[1770081396960,2.37274088,103.78,103.72,5.27217596]
[1770081397153,2.37274088,103.77,103.72,5.27217596]
[1770081397354,2.37274088,103.78,103.72,5.27217596]
[1770081397658,2.37274088,103.77,103.72,5.27217596]
[1770081398359,8.6793,103.8,103.72,5.27217596]
[1770081398554,134.9974,103.81,103.72,5.27217596]
[1770081399253,8.6805,103.78,103.72,5.27217596]
[1770081401659,8.6814,103.77,103.7,5.2779193]
[1770081406260,8.6814,103.77,103.71,5.25579521]
[1770081406960,8.6821,103.76,103.71,5.25579521]
[1770081407161,135.0297,103.78,103.71,5.25579521]
[1770081408062,8.6814,103.77,103.71,5.25579521]
[1770081408461,8.6822,103.76,103.71,5.25579521]
[1770081408659,477.5169,103.79,103.71,5.25579521]
[1770081408964,8.6816,103.77,103.71,5.25579521]
[1770081409166,477.5169,103.79,103.71,5.25579521]
[1770081409167,135.0301,103.78,103.71,5.25579521]
[1770081409865,135.0441,103.77,103.69,5.25039878]
[1770081411464,8.6837,103.75,103.69,5.25039878]
[1770081411867,8.6837,103.75,103.69,13.93829878]
[1770081414569,8.6837,103.75,103.7,5.26027302]
[1770081416473,8.6839,103.74,103.7,5.26027302]
[1770081419578,8.6829,103.75,103.7,5.26027302]
[1770081421181,2.37978762,103.73,103.68,5.21192972]
[1770081421483,2.37978762,103.72,103.66,5.21192972]
[1770081421874,8.6869,103.71,103.66,5.21192972]
[1770081422079,2.37978762,103.73,103.67,5.21192844]
[1770081422985,8.6869,103.71,103.67,5.21192844]
[1770081423477,11.06668762,103.71,103.65,13.87875604]
[1770081423672,137.50388762,103.71,103.65,5.18785604]
[1770081423879,2.37978762,103.71,103.65,5.18785604]
[1770081424073,345.48,103.74,103.66,5.18785491]
[1770081424281,347.85978762,103.74,103.68,5.18785491]
[1770081424582,8.6847,103.73,103.68,7.56764253]
[1770081424782,2.37978762,103.74,103.68,5.18785491]
[1770081425081,2.37978762,103.74,103.68,7.56764253]
[1770081425581,8.6847,103.73,103.68,16.25634253]
[1770081425783,135.0066,103.8,103.71,5.19166215]
[1770081425982,2.37978762,103.78,103.71,7.57144977]
[1770081426480,345.98,103.79,103.72,7.57144977]
[1770081426784,2.37978762,103.79,103.73,5.19166215]
[1770081427180,483.56638762,103.8,103.73,7.57144977]
[1770081427376,137.38638762,103.8,103.73,7.57144977]
[1770081427578,2.37978762,103.79,103.73,5.19166215]
[1770081428486,8.6805,103.78,103.73,5.19166215]
[1770081430482,8.6815,103.77,103.71,16.36207255]
[1770081430688,2.37978762,103.77,103.71,5.29608493]
[1770081432292,8.6823,103.76,103.71,5.29608493]
[1770081432790,8.683,103.75,103.71,5.29608493]
[1770081432988,2.37978762,103.75,103.69,5.286452]
[1770081433186,2.37978762,103.74,103.67,5.286452]
[1770081434290,8.6855,103.72,103.67,5.286452]
[1770081434688,2.37978762,103.74,103.68,5.28645057]
[1770081435683,8.6853,103.73,103.68,5.28645057]
[1770081436189,8.6854,103.72,103.68,5.28645057]
[1770081437386,352.65978762,103.75,103.68,7.66623819]
[1770081437590,350.28,103.75,103.7,5.28147574]
[1770081438392,8.684,103.74,103.7,5.28147574]
[1770081443293,11.06378762,103.74,103.68,13.94049563]
[1770081444101,11.06378762,103.74,103.69,5.2518945]
[1770081444700,8.6847,103.73,103.69,5.2518945]
[1770081447997,8.6839,103.74,103.69,5.2518945]
[1770081450103,8.6846,103.73,103.69,5.2518945]
[1770081452003,8.6839,103.74,103.69,13.9397945]
[1770081452199,2.37978762,103.77,103.71,5.25071468]
[1770081452400,2.37978762,103.74,103.69,5.25071468]
[1770081452600,2.37978762,103.75,103.69,5.25071468]
[1770081452805,137.46178762,103.74,103.67,7.62425028]
[1770081453010,2.37978762,103.72,103.67,5.24446266]
[1770081453608,2.37978762,103.73,103.67,5.24446266]
[1770081454002,490.74178762,103.74,103.67,7.62425028]
[1770081454410,490.74178762,103.74,103.67,5.24446266]
[1770081454910,2.37978762,103.73,103.67,5.24446266]
[1770081455408,8.6855,103.72,103.67,5.24446266]
[1770081455707,8.6855,103.72,103.67,2.37978762]
[1770081455913,8.6848,103.73,103.69,5.2215565]
[1770081457010,361.9639,103.74,103.69,7.60134412]
[1770081457309,8.6839,103.74,103.69,7.60134412]
[1770081457511,8.6839,103.74,103.7,5.23938853]
[1770081460611,8.6849,103.73,103.68,7.62875415]
[1770081460914,8.6849,103.73,103.68,5.24896653]
[1770081462613,2.37978762,103.73,103.66,7.6259818]
[1770081462818,2.37978762,103.73,103.66,5.24619418]
[1770081464411,8.6865,103.71,103.66,5.24619418]
[1770081464809,137.46938762,103.74,103.68,5.24337171]
[1770081465012,135.0896,103.74,103.68,5.24337171]
[1770081465211,137.46938762,103.74,103.68,5.24337171]
[1770081465417,8.6861,103.72,103.68,5.24337171]
[1770081466219,8.6861,103.72,103.66,16.30418282]
[1770081466519,8.6865,103.71,103.66,5.2342952]
[1770081468120,8.6865,103.71,103.66,7.61408282]
[1770081474420,8.6865,103.71,103.66,7.61567796]
[1770081475524,8.6865,103.71,103.66,5.2342952]
[1770081475726,8.6865,103.71,103.67,5.22900022]
[1770081479026,8.6856,103.72,103.68,5.1797086]
[1770081480023,8.6863,103.71,103.68,5.1797086]
[1770081480225,8.6863,103.71,103.66,16.2513908]
[1770081480525,8.6863,103.71,103.67,5.17970804]
[1770081480722,8.6872,103.7,103.65,5.17970804]
[1770081480927,2.38138276,103.71,103.65,5.17970804]
[1770081481228,2.38138276,103.7,103.64,5.17981659]
[1770081482423,8.688,103.69,103.64,5.17981659]
[1770081486127,8.688,103.69,103.64,7.56119935]
[1770081486425,8.688,103.69,103.64,5.17981659]
[1770081487833,8.688,103.69,103.65,5.10785501]
[1770081490136,11.06938276,103.69,103.63,13.80097488]
[1770081490533,2.38138276,103.68,103.61,7.48945764]
[1770081490738,2.38138276,103.68,103.62,5.10807488]
[1770081492637,2.38138276,103.67,103.6,13.80418398]
[1770081492832,8.6913,103.65,103.6,5.10888398]
[1770081493539,2.38138276,103.66,103.6,7.49026674]
[1770081493540,8.6905,103.66,103.6,7.49026674]
[1770081493739,11.07188276,103.66,103.6,5.10888398]
[1770081494533,11.07188276,103.66,103.6,13.80428398]
[1770081494839,11.07278276,103.65,103.6,5.10888398]
[1770081495242,2.38138276,103.64,103.58,5.40357537]
[1770081495537,135.176,103.67,103.58,5.40357537]
[1770081495538,2.38138276,103.62,103.58,5.40357537]
[1770081495933,2.38138276,103.62,103.56,5.40357445]
[1770081496238,2.38138276,103.6,103.53,5.40357445]
[1770081496941,11.07698276,103.6,103.54,5.37680906]
[1770081497139,135.2577,103.61,103.54,5.37680906]
[1770081497343,2.38138276,103.6,103.54,5.37680906]
[1770081497542,2.38138276,103.58,103.52,5.37680906]
[1770081498138,8.6971,103.59,103.53,5.37680822]
[1770081498340,11.07848276,103.59,103.53,5.37680822]
[1770081498533,11.07858276,103.58,103.53,5.37680822]
[1770081500137,2.38138276,103.6,103.53,5.37680822]
[1770081500343,2.38138276,103.6,103.54,5.34420753]
[1770081500741,11.07698276,103.6,103.54,5.34420753]
[1770081501439,11.07778276,103.59,103.54,5.34420753]
[1770081502741,135.2517,103.61,103.55,5.3323229]
[1770081502742,11.07598276,103.61,103.55,5.3323229]
[1770081503841,11.07598276,103.61,103.56,5.32667497]
[1770081504241,2.38138276,103.62,103.56,5.32667497]